bitfinex-derivatives/quotes_BTCF0:USTF0_20240814
["timestamp","ask_amount","ask_price","bid_price","bid_amount"]
[1723650224430,0.00025175,59604.0,59593.0,0.3608]
[1723650224627,0.00025175,59604.0,59593.0,0.444673]
[1723650224830,0.083866,59598.0,59593.0,0.444673]
[1723650225434,0.08386,59603.0,59593.0,0.3608]
[1723650226435,0.083861,59602.0,59593.0,0.3608]
[1723650226840,0.00025175,59604.0,59599.0,0.083864]
[1723650227039,0.00025175,59604.0,59603.0,0.083859]
[1723650227226,0.00025175,59604.0,59603.0,0.444659]
[1723650229539,0.08384,59617.0,59613.0,0.083845]
[1723650230531,0.3608,59619.0,59613.0,0.083845]
[1723650231437,0.3608,59619.0,59610.0,0.3608]
[1723650231438,0.3608,59619.0,59617.0,0.083839]
[1723650231833,0.3608,59619.0,59613.0,0.001]
[1723650232031,0.3608,59619.0,59613.0,0.084844]
[1723650232245,0.3608,59619.0,59614.0,0.083843]
[1723650232433,0.00025175,59621.0,59616.0,0.3608]
[1723650232938,0.00025175,59621.0,59618.0,0.083838]
[1723650233138,0.3608,59620.0,59619.0,0.083836]
[1723650233343,0.00025175,59621.0,59619.0,0.083836]
[1723650233539,0.00025175,59621.0,59615.0,0.083841]
[1723650233540,0.011,59619.0,59615.0,0.083841]
[1723650233932,0.011,59619.0,59617.0,0.083838]
[1723650234142,0.011,59619.0,59613.0,0.001]
[1723650234336,0.094837,59619.0,59613.0,0.001]
[1723650234638,0.083838,59618.0,59613.0,0.001]
[1723650234947,0.08384,59617.0,59610.0,0.37026225]
[1723650235131,0.458635,59620.0,59610.0,0.37026225]
[1723650235337,0.083848,59611.0,59610.0,0.00946225]
[1723650235531,0.083848,59611.0,59609.0,0.00025175]
[1723650235737,0.083849,59610.0,59609.0,0.00025175]
[1723650235940,0.3608,59613.0,59609.0,0.00025175]
[1723650236334,0.083849,59610.0,59609.0,0.00025175]
[1723650236935,0.167698,59610.0,59609.0,0.00025175]
[1723650237142,0.90328,59610.0,59591.0,0.3624]
[1723650237340,0.7216,59613.0,59591.0,0.3624]
[1723650237341,0.3608,59596.0,59591.0,0.3624]
[1723650237541,0.3608,59596.0,59581.0,0.09917982]
[1723650237542,0.3608,59596.0,59583.0,0.78968693]
[1723650237743,0.083875,59592.0,59583.0,0.7232]
[1723650238051,0.3608,59591.0,59585.0,0.083884]
[1723650238438,0.444676,59591.0,59585.0,0.083884]
[1723650238639,0.3608,59591.0,59583.0,0.36264]
[1723650238939,0.3608,59591.0,59582.0,0.00025175]
[1723650239245,0.083877,59590.0,59584.0,0.083886]
[1723650239747,0.083877,59590.0,59585.0,0.083884]
[1723650240044,0.3608,59591.0,59590.0,0.083877]
[1723650240237,0.00025175,59593.0,59592.0,0.083874]
[1723650240439,0.001,59596.0,59595.0,0.08387]
[1723650240641,0.001,59596.0,59595.0,0.52854]
[1723650240843,0.3608,59609.0,59596.0,0.083868]
[1723650241046,0.3608,59609.0,59608.0,0.083852]
[1723650241643,0.3608,59609.0,59601.0,0.3608]
[1723650241644,0.444652,59609.0,59601.0,0.3608]
[1723650241843,0.00025175,59614.0,59606.0,0.083854]
[1723650242048,0.00025175,59614.0,59606.0,0.3608]
[1723650242241,0.00025175,59614.0,59613.0,0.083845]
[1723650243346,0.00025175,59614.0,59613.0,0.987085]
[1723650244147,0.05009495,59635.0,59613.0,0.987085]
[1723650244148,0.083821,59630.0,59613.0,0.16634927]
[1723650244348,0.3608,59636.0,59627.0,0.3608]
[1723650244652,0.083812,59637.0,59633.0,0.3608]
[1723650244949,0.083812,59637.0,59634.0,0.083814]
[1723650245246,0.3608,59649.0,59637.0,0.083811]
[1723650245551,0.3608,59649.0,59638.0,0.083809]
[1723650245747,0.08381,59638.0,59633.0,0.444616]
[1723650246051,0.014,59637.0,59633.0,0.3608]
[1723650246234,0.014,59637.0,59636.0,0.083813]
[1723650247737,0.083809,59639.0,59636.0,0.083813]
[1723650248143,0.00025153,59641.0,59633.0,0.3608]
[1723650248344,0.083807,59640.0,59635.0,0.083813]
[1723650248543,0.083807,59640.0,59636.0,0.083812]
[1723650248753,0.014,59638.0,59636.0,0.083812]
[1723650249049,0.014,59637.0,59636.0,0.083812]
[1723650249647,0.00025153,59641.0,59638.0,0.08381]
[1723650250353,0.014,59640.0,59639.0,0.3608]
[1723650250544,0.014,59640.0,59639.0,0.947648]
[1723650251056,0.00025153,59641.0,59640.0,0.083807]
[1723650251349,0.00025153,59641.0,59640.0,0.586807]
[1723650252854,0.01425153,59641.0,59640.0,0.586807]
[1723650255256,0.3608,59664.0,59640.0,0.51241306]
[1723650255444,0.083789,59653.0,59651.0,0.083791]
[1723650255756,0.37004337,59661.0,59651.0,0.083791]
[1723650256754,0.083785,59656.0,59652.0,0.083789]
[1723650256948,0.083779,59660.0,59653.0,0.083789]
[1723650257154,0.00924337,59661.0,59653.0,0.3608]
[1723650257352,0.00025153,59662.0,59653.0,0.3608]
[1723650257353,0.00025153,59662.0,59661.0,0.083777]
[1723650258150,0.00025153,59662.0,59653.0,0.3608]
[1723650258151,0.00960221,59662.0,59653.0,0.3608]
[1723650258456,0.00025153,59662.0,59653.0,0.3608]
[1723650259649,0.00025153,59662.0,59661.0,0.084777]
[1723650259856,0.01425153,59662.0,59661.0,0.168554]
[1723650260054,0.01425153,59662.0,59661.0,0.084777]
[1723650260248,0.3608,59679.0,59662.0,0.083775]
[1723650260448,0.3608,59679.0,59676.0,0.083756]
[1723650260858,0.37014789,59679.0,59676.0,0.083756]
[1723650261251,0.00934789,59679.0,59678.0,0.444554]
[1723650261454,0.12025153,59683.0,59678.0,0.3608]
[1723650261660,0.12025153,59683.0,59682.0,0.083748]
[1723650262855,0.12973324,59683.0,59682.0,0.083748]
[1723650263564,0.00973324,59683.0,59682.0,0.083748]
[1723650263765,0.00025153,59683.0,59682.0,0.083748]
[1723650263963,0.00025153,59683.0,59682.0,0.948288]
[1723650264467,0.3608,59696.0,59682.0,0.948288]
[1723650264468,0.3608,59696.0,59682.0,1.22534]
[1723650264667,0.08371,59709.0,59702.0,0.08372]
[1723650264856,0.0837,59716.0,59695.0,0.7227]
[1723650264857,0.083715,59706.0,59695.0,0.3619]
[1723650265060,0.3608,59701.0,59695.0,0.3619]
[1723650265366,0.3608,59701.0,59700.0,0.083723]
[1723650266268,0.00016628,59704.0,59703.0,0.083719]
[1723650268559,0.00016628,59704.0,59703.0,0.445619]
[1723650269360,0.00016628,59704.0,59703.0,0.083719]
[1723650270761,0.00716628,59704.0,59703.0,0.084719]
[1723650271362,0.00716628,59704.0,59703.0,0.001]
[1723650271565,0.36796628,59704.0,59682.0,0.3608]
[1723650271767,0.08374,59688.0,59682.0,0.3608]
[1723650272277,0.3608,59689.0,59685.0,0.083743]
[1723650272767,0.3608,59689.0,59682.0,0.3608]
[1723650272973,0.3608,59683.0,59681.0,0.00025129]
[1723650273662,0.444548,59682.0,59681.0,0.00025129]
[1723650273863,0.947228,59682.0,59681.0,0.00025129]
[1723650274168,1.35684301,59682.0,59681.0,0.00025129]
[1723650274365,0.37041501,59682.0,59681.0,0.00025129]
[1723650274567,0.3608,59682.0,59681.0,0.00025129]
[1723650274767,0.37009607,59689.0,59688.0,0.08374]
[1723650275077,0.00025129,59693.0,59692.0,0.083734]
[1723650278676,0.00925129,59693.0,59692.0,0.084734]
[1723650279363,0.00925129,59693.0,59692.0,0.168468]
[1723650279570,0.06684247,59717.0,59709.0,0.08371]
[1723650279571,0.3608,59710.0,59709.0,0.08371]
[1723650279875,0.3608,59710.0,59705.0,0.444516]
[1723650280180,0.083711,59709.0,59705.0,0.3608]
[1723650280569,0.3608,59710.0,59705.0,0.3608]
[1723650280772,0.3608,59706.0,59701.0,0.00025129]
[1723650281566,0.3608,59711.0,59701.0,0.08397229]
[1723650281767,0.08371,59710.0,59703.0,0.083717]
[1723650282371,0.08371,59710.0,59701.0,0.00025129]
[1723650282372,0.08371,59710.0,59704.0,0.083717]
[1723650282573,0.014,59710.0,59701.0,0.00025129]
[1723650282870,0.3608,59705.0,59701.0,0.00025129]
[1723650283077,0.014,59710.0,59702.0,0.3608]
[1723650284072,0.3608,59703.0,59692.0,0.083734]
[1723650284275,0.444527,59697.0,59683.0,0.3608]
[1723650284478,0.444527,59697.0,59682.0,0.3619]
[1723650284479,0.3608,59697.0,59682.0,0.3619]
[1723650284677,0.3608,59697.0,59691.0,0.083735]
[1723650284873,0.3608,59697.0,59684.0,0.3608]
[1723650285082,0.3608,59697.0,59685.0,0.083744]
[1723650285272,0.3608,59703.0,59702.0,0.08372]
[1723650285672,0.004,59710.0,59702.0,0.44562]
[1723650285875,0.3608,59714.0,59709.0,0.08371]
[1723650286075,0.00025129,59708.0,59702.0,0.3619]
[1723650286389,0.00025129,59708.0,59707.0,0.083713]
[1723650286573,0.36105129,59708.0,59707.0,0.083713]
[1723650287182,0.00025129,59708.0,59707.0,0.083713]
[1723650287976,0.00025129,59708.0,59706.0,0.00025129]
[1723650288170,0.00025129,59708.0,59706.0,0.08396529]
[1723650288369,0.00025129,59708.0,59706.0,0.00025129]
[1723650288584,0.3608,59707.0,59706.0,0.00025129]
[1723650288878,0.3608,59707.0,59689.0,0.3619]
[1723650288879,0.083714,59706.0,59690.0,0.083736]
[1723650289078,0.083714,59706.0,59689.0,0.00945272]
[1723650289079,0.04994662,59704.0,59689.0,0.37025272]
[1723650289377,0.41074662,59706.0,59689.0,0.37025272]
[1723650289579,0.3608,59699.0,59694.0,0.08373]
[1723650289779,0.3608,59699.0,59695.0,0.083729]
[1723650289972,0.04994662,59704.0,59689.0,0.37013546]
[1723650290173,0.3608,59697.0,59691.0,0.00025129]
[1723650290677,0.3608,59692.0,59691.0,0.00025129]
[1723650291475,0.3608,59692.0,59691.0,0.08398629]
[1723650292471,0.04994662,59696.0,59692.0,0.083733]
[1723650292686,0.04994662,59695.0,59692.0,0.083733]
[1723650292873,0.04994662,59695.0,59693.0,0.083732]
[1723650293073,0.008,59697.0,59696.0,0.083728]
[1723650293275,0.008,59697.0,59696.0,0.528256]
[1723650293480,0.00025129,59708.0,59696.0,0.528256]
[1723650293481,0.00025129,59708.0,59707.0,0.083713]
[1723650293675,0.00025129,59708.0,59705.0,0.3619]
[1723650293877,0.05019791,59708.0,59699.0,0.083724]
[1723650294086,0.444514,59706.0,59700.0,0.083723]
[1723650294271,0.3608,59706.0,59705.0,0.083716]
[1723650294476,0.00025129,59708.0,59707.0,0.083713]
[1723650297196,0.00025129,59708.0,59702.0,0.3608]
[1723650298189,0.00025129,59708.0,59707.0,0.001]
[1723650298690,0.00025129,59708.0,59707.0,0.084713]
[1723650299094,0.00025129,59708.0,59707.0,0.445513]
[1723650299590,0.00625129,59708.0,59707.0,0.444513]
[1723650300594,0.00952024,59719.0,59708.0,0.083711]
[1723650300801,0.3608,59722.0,59711.0,0.083707]
[1723650301096,0.083711,59708.0,59707.0,0.3618]
[1723650301285,0.083711,59708.0,59707.0,0.001]
[1723650301286,0.444511,59708.0,59707.0,0.001]
[1723650301487,0.13376027,59712.0,59707.0,0.001]
[1723650301488,0.083706,59712.0,59707.0,0.001]
[1723650301691,0.3608,59711.0,59707.0,0.001]
[1723650301886,0.3608,59708.0,59707.0,0.001]
[1723650302084,0.0092378,59712.0,59707.0,0.445512]
[1723650302283,0.00025129,59713.0,59707.0,0.445512]
[1723650302485,0.00025129,59713.0,59707.0,0.3618]
[1723650302688,0.00025129,59713.0,59711.0,0.083707]
[1723650303286,0.083708,59711.0,59708.0,0.001]
[1723650303490,0.05005327,59710.0,59708.0,0.001]
[1723650303691,0.05005327,59709.0,59708.0,0.001]
[1723650303998,0.05005327,59709.0,59702.0,0.00025129]
[1723650303999,0.44451,59709.0,59702.0,0.00025129]
[1723650304197,0.13376537,59709.0,59704.0,0.083716]
[1723650304389,0.05005537,59708.0,59703.0,0.06632167]
[1723650304699,0.05005537,59711.0,59706.0,0.06632167]
[1723650304996,0.00025129,59713.0,59712.0,0.083706]
[1723650305395,0.00025129,59713.0,59712.0,0.06632728]
[1723650305588,0.00025129,59713.0,59712.0,0.083706]
[1723650306287,0.42764247,59727.0,59712.0,0.083706]
[1723650306288,0.05005537,59727.0,59712.0,0.586106]
[1723650306496,0.41085537,59732.0,59724.0,0.3619]
[1723650306694,0.3608,59732.0,59729.0,0.083682]
[1723650306899,0.05005537,59737.0,59729.0,0.167364]
[1723650307100,0.05005537,59740.0,59729.0,0.444482]
[1723650307400,0.3608,59748.0,59729.0,1.34558427]
[1723650307585,0.3608,59748.0,59746.0,0.083658]
[1723650307790,0.3608,59748.0,59747.0,0.083657]
[1723650308592,0.00016546,59753.0,59752.0,0.08365]
[1723650308996,0.00016546,59753.0,59748.0,0.3608]
[1723650309199,0.00016546,59753.0,59752.0,0.08365]
[1723650310403,0.00016546,59753.0,59752.0,0.08465]
[1723650310602,0.00016546,59753.0,59752.0,0.07805541]
[1723650311096,0.00016546,59753.0,59752.0,0.001]
[1723650311291,0.90224546,59753.0,59742.0,0.08391506]
[1723650311492,0.3608,59748.0,59742.0,0.08391506]
[1723650311692,0.3608,59748.0,59742.0,0.00025106]
[1723650312092,0.444462,59743.0,59731.0,0.00184]
[1723650312297,0.083674,59735.0,59729.0,0.083681]
[1723650312704,0.3608,59736.0,59727.0,0.3608]
[1723650312891,0.083683,59728.0,59721.0,0.083692]
[1723650313099,0.86304,59736.0,59719.0,0.00933598]
[1723650313100,0.3608,59731.0,59719.0,0.00933598]
[1723650313295,0.083682,59729.0,59719.0,0.00025106]
[1723650313798,0.083685,59727.0,59720.0,0.083694]
[1723650313996,0.00025106,59730.0,59719.0,0.00025106]
[1723650314209,0.3608,59724.0,59719.0,0.00025106]
[1723650314499,0.083693,59721.0,59719.0,0.00025106]
[1723650314700,0.3608,59724.0,59721.0,0.083693]
[1723650315018,0.00025106,59730.0,59719.0,0.00025106]
[1723650315201,0.08393206,59730.0,59723.0,0.08369]
[1723650315401,0.00025106,59730.0,59729.0,0.083682]
[1723650316308,0.00025106,59730.0,59729.0,1.069644]
[1723650316495,0.3608,59745.0,59744.0,0.083661]
[1723650317007,0.3608,59745.0,59740.0,0.3619]
[1723650317304,0.0092403,59753.0,59741.0,0.3608]
[1723650317603,0.3608,59769.0,59752.0,1.0835]
[1723650317902,0.3608,59777.0,59762.0,0.083634]
[1723650318201,0.3608,59777.0,59763.0,0.083634]
[1723650318406,0.3608,59777.0,59759.0,0.08364]
[1723650318407,0.3608,59771.0,59759.0,0.08364]
[1723650318606,0.3608,59771.0,59760.0,0.3608]
[1723650318793,0.3608,59771.0,59759.0,0.00025106]
[1723650319312,0.3608,59771.0,59764.0,0.3608]
[1723650319602,0.3608,59771.0,59759.0,0.00025106]
[1723650319807,0.3608,59764.0,59759.0,0.00025106]
[1723650320191,0.35996546,59764.0,59763.0,0.083634]
[1723650320393,0.06772247,59790.0,59765.0,0.083631]
[1723650320394,0.083597,59790.0,59765.0,0.083631]
[1723650320597,0.3608,59799.0,59787.0,0.3608]
[1723650320809,0.3608,59798.0,59787.0,0.3608]
[1723650321199,0.00084,59804.0,59796.0,0.3608]
[1723650321394,0.3608,59811.0,59796.0,0.3608]
[1723650321595,0.3608,59811.0,59809.0,0.083569]
[1723650321896,0.3608,59828.0,59806.0,0.3608]
[1723650322097,0.3608,59828.0,59807.0,0.083572]
[1723650322098,0.3608,59822.0,59807.0,0.083572]
[1723650322297,0.083559,59817.0,59806.0,0.3608]
[1723650322496,0.083564,59814.0,59799.0,0.083584]
[1723650322812,0.083564,59814.0,59811.0,0.00025084]
[1723650323107,0.50156,59813.0,59811.0,0.00025084]
[1723650323304,0.585125,59813.0,59811.0,0.00025084]
[1723650323500,0.3608,59819.0,59811.0,0.00025084]
[1723650323702,0.001,59817.0,59811.0,0.00025084]
[1723650325009,0.084565,59813.0,59811.0,0.36205084]
[1723650325199,0.084565,59813.0,59811.0,0.00125084]
[1723650325398,0.50156,59812.0,59811.0,0.00125084]
[1723650325799,0.00184,59813.0,59811.0,0.00125084]
[1723650325800,0.001,59813.0,59811.0,1.34717784]
[1723650325999,0.3608,59843.0,59812.0,0.50156]
[1723650326207,0.3608,59843.0,59827.0,0.3608]
[1723650326504,0.3608,59843.0,59834.0,0.3608]
[1723650326709,0.61754,59849.0,59834.0,0.3608]
[1723650326909,0.48514,59849.0,59834.0,0.3608]
[1723650327110,0.3608,59839.0,59827.0,0.3608]
[1723650327608,0.3608,59839.0,59836.0,0.00025084]
[1723650328017,0.58489,59838.0,59836.0,0.00025084]
[1723650328415,0.50136,59837.0,59836.0,0.00025084]
[1723650328913,0.90136,59837.0,59834.0,0.001]
[1723650329208,0.3608,59837.0,59834.0,0.001]
[1723650329512,0.001,59849.0,59834.0,0.001]
[1723650329713,0.001,59849.0,59839.0,0.3608]
[1723650330015,0.00074916,59849.0,59847.0,0.083517]
[1723650330510,0.00074916,59849.0,59847.0,0.984796]
[1723650330709,0.00074916,59849.0,59848.0,0.50128]
[1723650331102,0.00074916,59849.0,59848.0,0.90128]
[1723650331302,0.00074916,59849.0,59846.0,0.3608]
[1723650332009,0.00074916,59849.0,59846.0,0.444317]
[1723650332211,0.0002501,59854.0,59846.0,0.3608]
[1723650332415,0.0002501,59854.0,59852.0,0.3608]
[1723650332801,0.0002501,59854.0,59852.0,0.444309]
[1723650333814,0.0002501,59854.0,59852.0,0.3608]
[1723650334204,0.0002501,59854.0,59853.0,0.3608]
[1723650334506,0.0002501,59854.0,59853.0,1.1825]
[1723650334704,0.0002501,59854.0,59853.0,1.68374]
[1723650335224,0.0002501,59854.0,59853.0,0.3608]
[1723650336616,0.0002501,59854.0,59846.0,0.3608]
[1723650336814,0.0002501,59854.0,59852.0,0.444309]
[1723650337309,0.0002501,59854.0,59852.0,1.345549]
[1723650337506,0.0002501,59854.0,59853.0,0.92394]
[1723650337710,0.0002501,59854.0,59853.0,1.32394]
[1723650338018,0.0002501,59854.0,59853.0,0.90224]
[1723650338206,0.0002501,59854.0,59853.0,0.50224]
[1723650338402,0.0002501,59854.0,59853.0,0.001]
[1723650339011,0.0002501,59854.0,59853.0,0.90124]
[1723650339208,0.0012501,59854.0,59852.0,0.444309]
[1723650340215,0.0002501,59854.0,59852.0,0.444309]
[1723650340517,0.0002501,59854.0,59853.0,0.001]
[1723650340518,0.5034901,59854.0,59853.0,0.001]
[1723650340710,0.083516,59848.0,59837.0,0.083531]
[1723650340905,0.3608,59846.0,59836.0,0.00025084]
[1723650341115,0.3608,59837.0,59836.0,0.00025084]
[1723650341324,0.083534,59835.0,59822.0,0.083551]
[1723650341615,0.3608,59830.0,59821.0,0.3608]
[1723650341820,0.3608,59831.0,59821.0,0.3608]
[1723650342114,0.3608,59828.0,59818.0,0.3608]
[1723650342306,0.3608,59831.0,59818.0,0.7825]
[1723650342513,0.3608,59838.0,59818.0,0.7825]
[1723650343019,0.3608,59838.0,59828.0,0.866044]
[1723650343020,0.00025061,59829.0,59828.0,0.866044]
[1723650343513,0.00025061,59829.0,59828.0,0.444344]
[1723650343921,0.00025061,59829.0,59828.0,0.3608]
[1723650344115,0.50169061,59829.0,59828.0,0.3608]
[1723650344320,0.90169061,59829.0,59823.0,0.3608]
[1723650344506,0.90169061,59829.0,59818.0,0.013]
[1723650344507,0.50144,59828.0,59818.0,0.3738]
[1723650344714,0.18152826,59829.0,59818.0,0.3738]
[1723650344913,0.00025061,59829.0,59818.0,0.3738]
[1723650345212,0.3608,59828.0,59818.0,0.3608]
[1723650345410,0.3608,59823.0,59818.0,0.3608]
[1723650345614,0.3608,59823.0,59812.0,0.3608]
[1723650345615,0.3608,59820.0,59801.0,0.3608]
[1723650345818,0.3608,59820.0,59796.0,0.36098362]
[1723650345819,0.083574,59806.0,59796.0,0.00018362]
[1723650346021,0.3608,59804.0,59796.0,0.00018362]
[1723650346525,0.317572,59808.0,59796.0,0.00018362]
[1723650346716,0.234,59808.0,59796.0,0.00018362]
[1723650347021,0.083584,59800.0,59796.0,0.00018362]
[1723650347325,0.3608,59802.0,59796.0,0.00018362]
[1723650347821,0.00025083,59806.0,59801.0,0.3608]
[1723650348024,0.00025083,59806.0,59804.0,0.083577]
[1723650348325,0.001,59820.0,59804.0,0.083577]
[1723650348526,0.3608,59826.0,59819.0,0.3608]
[1723650348821,0.3608,59826.0,59824.0,0.083549]
[1723650349417,0.3608,59826.0,59819.0,0.3608]
[1723650349722,0.05005537,59841.0,59825.0,0.3608]
[1723650349930,0.083515,59849.0,59840.0,0.3608]
[1723650350221,0.50128,59848.0,59831.0,0.3608]
[1723650350425,0.083533,59836.0,59831.0,0.3608]
[1723650350614,0.00025083,59839.0,59831.0,0.3608]
[1723650350809,0.08377883,59839.0,59834.0,0.00025083]
[1723650351013,0.00025083,59839.0,59834.0,0.00025083]
[1723650351416,0.00025083,59839.0,59837.0,0.3608]
[1723650351619,0.00025083,59839.0,59837.0,0.444331]
[1723650351820,0.00025083,59839.0,59837.0,0.3608]
[1723650352213,0.00025083,59839.0,59837.0,0.44433]
[1723650353622,0.00225083,59839.0,59837.0,0.44433]
[1723650353825,0.00225083,59839.0,59837.0,0.3608]
[1723650354420,0.00225083,59839.0,59837.0,0.444331]
[1723650355220,0.50136,59838.0,59837.0,0.3608]
[1723650355522,0.3608,59838.0,59834.0,0.00025083]
[1723650355725,0.00225083,59839.0,59837.0,0.527862]
[1723650355918,0.05005537,59865.0,59857.0,0.083503]
[1723650356121,0.3608,59880.0,59854.0,0.4217]
[1723650356122,0.05005537,59869.0,59864.0,0.3608]
[1723650356328,0.3608,59880.0,59869.0,0.3608]
[1723650356329,0.04964195,59876.0,59869.0,0.3608]
[1723650356537,0.41044195,59880.0,59877.0,0.083475]
[1723650356722,0.3608,59880.0,59869.0,0.3608]
[1723650356922,0.3608,59880.0,59874.0,0.083478]
[1723650357128,0.083481,59873.0,59869.0,0.3608]
[1723650357327,0.86184,59880.0,59855.0,0.3608]
[1723650357328,0.04964195,59874.0,59855.0,0.3608]
[1723650357527,0.04964195,59867.0,59855.0,0.3608]
[1723650357728,0.04964195,59868.0,59855.0,0.3608]
[1723650357935,0.04964195,59870.0,59855.0,0.3608]
[1723650358228,0.083493,59864.0,59859.0,0.36105057]
[1723650358427,0.3608,59865.0,59859.0,0.36105057]
[1723650358933,0.00024904,59868.0,59857.0,0.083503]
[1723650359123,0.00024904,59868.0,59809.0,0.06614973]
[1723650359124,0.3608,59835.0,59809.0,0.06614973]
[1723650359324,0.08352,59845.0,59807.0,0.00920983]
[1723650359325,0.3608,59811.0,59807.0,0.00920983]
[1723650359520,0.3608,59825.0,59809.0,0.4217]
[1723650360124,0.3608,59819.0,59814.0,0.083562]
[1723650360327,0.3608,59819.0,59811.0,0.0002508]
[1723650360328,0.083566,59812.0,59811.0,0.0002508]
[1723650360924,0.444366,59812.0,59811.0,0.0002508]
[1723650361124,0.3608,59812.0,59811.0,0.0002508]
[1723650361327,0.3608,59812.0,59811.0,0.9018108]
[1723650361625,0.3608,59831.0,59830.0,0.08354]
[1723650361831,0.24022445,59831.0,59830.0,0.16708]
[1723650362025,0.3608,59838.0,59837.0,0.08353]
[1723650362532,0.3608,59838.0,59825.0,0.4217]
[1723650362743,0.3608,59826.0,59806.0,0.06614973]
[1723650363038,0.3608,59826.0,59805.0,0.4217]
[1723650363039,0.3608,59821.0,59815.0,0.083561]
[1723650363227,0.3608,59821.0,59804.0,0.1219]
[1723650363228,0.083556,59819.0,59814.0,0.0002508]
[1723650363423,0.3608,59815.0,59814.0,0.0002508]
[1723650363627,0.3608,59815.0,59796.0,0.3608]
[1723650363829,0.3608,59805.0,59796.0,0.3608]
[1723650364534,0.3608,59800.0,59799.0,0.083583]
[1723650364944,0.3608,59805.0,59804.0,0.083537]
[1723650365239,0.3608,59812.0,59811.0,0.083567]
[1723650365437,0.14974488,59834.0,59811.0,0.083567]
[1723650365438,0.41045666,59829.0,59811.0,0.50156]
[1723650365734,0.3608,59829.0,59813.0,0.3608]
[1723650365939,0.3608,59823.0,59822.0,0.083552]
[1723650366124,0.3608,59823.0,59813.0,0.3608]
[1723650366326,0.3608,59823.0,59819.0,0.083556]
[1723650366838,0.3608,59823.0,59817.0,0.0002508]
[1723650367032,0.083557,59818.0,59817.0,0.0002508]
[1723650367439,0.444357,59818.0,59817.0,0.0002508]
[1723650368124,0.527914,59818.0,59817.0,0.0002508]
[1723650368328,0.083563,59814.0,59813.0,0.001]
[1723650368833,0.3608,59818.0,59813.0,0.001]
[1723650369041,0.3608,59818.0,59817.0,0.083559]
[1723650369232,0.001,59823.0,59817.0,0.083558]
[1723650369537,0.3608,59821.0,59813.0,0.001]
[1723650370269,0.3608,59821.0,59820.0,0.083555]
[1723650370429,0.3608,59821.0,59815.0,0.083561]
[1723650370628,0.083559,59817.0,59813.0,0.001]
[1723650370835,0.083559,59817.0,59812.0,0.0002508]
[1723650371231,0.001,59818.0,59812.0,0.0002508]
[1723650371433,0.3608,59813.0,59812.0,0.0838168]
[1723650371731,0.001,59821.0,59813.0,0.002]
[1723650371932,0.444363,59814.0,59813.0,0.002]
[1723650372128,0.444363,59814.0,59798.0,0.083585]
[1723650372439,0.3608,59814.0,59795.0,0.3608]
[1723650372633,0.083565,59813.0,59804.0,0.083577]
[1723650372834,0.3608,59814.0,59804.0,0.083577]
[1723650373031,0.3608,59814.0,59795.0,0.3608]
[1723650373032,0.083581,59801.0,59795.0,0.3608]
[1723650373332,0.3608,59805.0,59803.0,0.0002508]
[1723650373534,0.7216,59805.0,59793.0,0.00017397]
[1723650373726,0.3608,59794.0,59793.0,0.00017397]
[1723650373934,0.444391,59794.0,59793.0,0.00017397]
[1723650374230,1.26252,59794.0,59776.0,0.00953224]
[1723650374438,0.3608,59780.0,59767.0,0.3608]
[1723650374835,0.0002508,59791.0,59779.0,0.0002508]
[1723650375040,0.0002508,59791.0,59790.0,0.083596]
[1723650375240,0.0002508,59791.0,59784.0,0.083604]
[1723650375241,0.000414,59791.0,59784.0,0.083604]
[1723650375544,0.000414,59791.0,59780.0,0.083609]
[1723650375732,0.000414,59791.0,59779.0,0.0002508]
[1723650375929,0.3608,59780.0,59779.0,0.0002508]
[1723650376228,0.00017397,59780.0,59779.0,0.0838628]
[1723650376439,0.00017397,59780.0,59779.0,0.5857028]
[1723650376638,0.00017397,59780.0,59779.0,0.09330743]
[1723650377039,0.00017397,59780.0,59779.0,0.00969543]
[1723650377346,0.08378397,59780.0,59779.0,0.00969543]
[1723650377537,0.00017397,59780.0,59779.0,0.00969543]
[1723650377734,0.00017397,59780.0,59779.0,0.09330743]
[1723650378036,0.58562397,59780.0,59779.0,0.00969543]
[1723650378643,0.00017397,59780.0,59779.0,0.0002508]
[1723650378840,0.08378397,59780.0,59779.0,0.0002508]
[1723650379231,0.00017397,59780.0,59779.0,0.0002508]
[1723650379536,0.00017397,59780.0,59743.0,0.23412]
[1723650379738,0.00017397,59780.0,59680.0,0.3608]
[1723650379739,0.3608,59736.0,59680.0,0.3608]
[1723650379929,0.3608,59736.0,59673.0,0.3608]
[1723650379930,0.3608,59697.0,59673.0,0.36076]
[1723650380138,0.083667,59740.0,59679.0,0.3608]
[1723650380139,0.3608,59690.0,59679.0,0.3608]
[1723650380444,0.3608,59704.0,59694.0,0.08373]
[1723650380634,0.3608,59709.0,59692.0,0.4217]
[1723650380937,0.3608,59709.0,59699.0,0.083724]
[1723650380938,0.3608,59702.0,59699.0,0.083724]
[1723650381143,0.3608,59702.0,59700.0,0.083722]
[1723650381338,0.3608,59702.0,59701.0,0.50252]
[1723650381742,0.00021231,59702.0,59701.0,1.13668]
[1723650381950,0.36101231,59702.0,59701.0,1.26888]
[1723650382243,0.17775432,59735.0,59702.0,0.50248]
[1723650382244,3.2e-07,59706.0,59702.0,0.50248]
[1723650382434,3.2e-07,59706.0,59701.0,1.15022]
[1723650382635,3.2e-07,59706.0,59702.0,0.62698]
[1723650382841,0.3608,59715.0,59714.0,0.083703]
[1723650383239,0.3608,59715.0,59714.0,0.986103]
[1723650384745,0.00025132,59720.0,59719.0,0.083696]
[1723650384935,0.3608,59732.0,59731.0,0.083679]
[1723650385443,0.3608,59732.0,59731.0,3.853679]
[1723650385746,0.3608,59737.0,59736.0,0.083672]
[1723650385951,0.3608,59737.0,59736.0,0.483672]
[1723650386135,0.3608,59743.0,59742.0,0.083662]
[1723650386649,0.3608,59743.0,59742.0,0.985822]
[1723650387750,0.36105109,59748.0,59747.0,0.083657]